Workbook

Sheet 产品生产记录表
A1: 银瓶有限责任公司产品生产记录
A2: 编 号 | B2: 名 称 | C2: 生产数量 | D2: 单 位 | E2: 单 价 | F2: 生产单位 | G2: 生产日期 | H2: 备 注
A3: S001 | B3: XX营养麦片 | C3: 13500 | D3: 袋 | E3: 9.5 | F3: 二车间一生产线 | G3: 2004-02-10
A4: S002 | B4: XX土豆片 | C4: 24800 | D4: 袋 | E4: 2 | F4: 三车间二生产线 | G4: 2004-02-10
A5: S003 | B5: XX薯条 | C5: 20300 | D5: 袋 | E5: 2.5 | F5: 一车间二生产线 | G5: 2004-02-11
A6: S004 | B6: XX豆奶 | C6: 14500 | D6: 袋 | E6: 7.5 | F6: 二车间一生产线 | G6: 2004-02-11
A7: S005 | B7: XX香酥花生 | C7: 13800 | D7: 袋 | E7: 1.5 | F7: 二车间二生产线 | G7: 2004-02-12
A8: S006 | B8: XX葡萄糖 | C8: 9800 | D8: 袋 | E8: 6 | F8: 一车间一生产线 | G8: 2004-02-12
A9: S007 | B9: XX蜂王浆 | C9: 8900 | D9: 瓶 | E9: 12 | F9: 三车间一生产线 | G9: 2004-02-13
A10: S008 | B10: XX巧克力豆 | C10: 15500 | D10: 盒 | E10: 5 | F10: 四车间一生产线 | G10: 2004-02-13
A11: Z001 | B11: XX洗头水 | C11: 8700 | D11: 袋 | E11: 9 | F11: 四车间二生产线 | G11: 2004-02-10
A12: Z002 | B12: XX洗发膏 | C12: 8300 | D12: 瓶 | E12: 7.5 | F12: 四车间一生产线 | G12: 2004-02-10
A13: Z003 | B13: XX沐浴露 | C13: 9200 | D13: 瓶 | E13: 7 | F13: 二车间二生产线 | G13: 2004-02-11
A14: Z004 | B14: XX洗面奶 | C14: 6800 | D14: 瓶 | E14: 10 | F14: 一车间一生产线 | G14: 2004-02-11
A15: Z005 | B15: XX啫哩水 | C15: 5900 | D15: 瓶 | E15: 8 | F15: 一车间二生产线 | G15: 2004-02-12
A16: Z006 | B16: XX护肤油 | C16: 6500 | D16: 瓶 | E16: 4.5 | F16: 三车间一生产线 | G16: 2004-02-12
A17: Z007 | B17: XX润肤霜 | C17: 12300 | D17: 瓶 | E17: 9.5 | F17: 二车间一生产线 | G17: 2004-02-13
A18: Z008 | B18: XX防晒霜 | C18: 15200 | D18: 盒 | E18: 6 | F18: 三车间二生产线 | G18: 2004-02-13
A19: XH001 | B19: XX洗衣粉 | C19: 16300 | D19: 袋 | E19: 4.5 | F19: 二车间一生产线 | G19: 2004-02-11
A20: XH002 | B20: XX香皂 | C20: 15600 | D20: 盒 | E20: 3 | F20: 三车间二生产线 | G20: 2004-02-11
A21: XH003 | B21: XX洗衣皂 | C21: 11500 | D21: 盒 | E21: 2 | F21: 四车间二生产线 | G21: 2004-02-12
A22: XH004 | B22: XX餐洁精 | C22: 10500 | D22: 瓶 | E22: 2 | F22: 四车间一生产线 | G22: 2004-02-12
A23: XH005 | B23: XX洗洁精 | C23: 9900 | D23: 瓶 | E23: 2 | F23: 一车间二生产线 | G23: 2004-02-13
A24: XH006 | B24: XX清洗剂 | C24: 6700 | D24: 瓶 | E24: 1.8 | F24: 二车间一生产线 | G24: 2004-02-13
A25: XH007 | B25: XX消毒液 | C25: 9600 | D25: 瓶 | E25: 2 | F25: 二车间二生产线 | G25: 2004-02-14
A26: XH008 | B26: XX喷虫灵 | C26: 7500 | D26: 瓶 | E26: 5 | F26: 一车间一生产线 | G26: 2004-02-14

Sheet 产品销售记录表
A1: 产品销售记录表
A2: 编 号 | B2: 名 称 | C2: 单 位 | D2: 单 价(￥) | E2: 销售量 | F2: 折价率 | G2: 销售额(￥)
A3: S001 | B3: XX营养麦片 | C3: 袋 | D3: 9.5 | E3: 142690 | F3: 0.9 | G3: =D3*E3*F3 -> 1219999.5
A4: S002 | B4: XX土豆片 | C4: 袋 | D4: 2 | E4: 258800 | F4: 0.85 | G4: =D4*E4*F4 -> 439960
A5: S003 | B5: XX薯条 | C5: 袋 | D5: 2.5 | E5: 198700 | F5: 0.92 | G5: 457010
A6: S004 | B6: XX豆奶 | C6: 袋 | D6: 7.5 | E6: 102300 | F6: 0.88 | G6: 675180
A7: S005 | B7: XX香酥花生 | C7: 袋 | D7: 1.5 | E7: 98600 | F7: 0.86 | G7: 127194
A8: S006 | B8: XX葡萄糖 | C8: 袋 | D8: 6 | E8: 65000 | F8: 0.92 | G8: 358800
A9: S007 | B9: XX蜂王浆 | C9: 瓶 | D9: 12 | E9: 86700 | F9: 0.95 | G9: 988380
A10: S008 | B10: XX巧克力豆 | C10: 盒 | D10: 5 | E10: 104500 | F10: 0.93 | G10: 485925
A11: Z001 | B11: XX洗头水 | C11: 袋 | D11: 9 | E11: 96000 | F11: 0.85 | G11: 734400
A12: Z002 | B12: XX洗发膏 | C12: 瓶 | D12: 7.5 | E12: 54000 | F12: 0.8 | G12: 324000
A13: Z003 | B13: XX沐浴露 | C13: 瓶 | D13: 7 | E13: 102200 | F13: 0.85 | G13: 608090
A14: Z004 | B14: XX洗面奶 | C14: 瓶 | D14: 10 | E14: 94900 | F14: 0.88 | G14: 835120
A15: Z005 | B15: XX啫哩水 | C15: 瓶 | D15: 8 | E15: 37000 | F15: 0.88 | G15: 260480
A16: Z006 | B16: XX护肤油 | C16: 瓶 | D16: 4.5 | E16: 32400 | F16: 0.92 | G16: 134136
A17: Z007 | B17: XX润肤霜 | C17: 瓶 | D17: 9.5 | E17: 186700 | F17: 0.9 | G17: 1596285
A18: Z008 | B18: XX防晒霜 | C18: 盒 | D18: 6 | E18: 132400 | F18: 0.87 | G18: 691128

Sheet 员工工资表
A1: 员 工 工 资 表
A2: 结算日期：2007年6月1日 | H2: 工资统计范围2007年5月1日至2007年5月31日
A3: 员工编号 | B3: 姓 名 | C3: 职 位 | D3: 基本工资 | E3: 提成 | F3: 效益奖金 | G3: 小计 | H3: 迟到 | I3: 事假 | J3: 旷工 | K3: 小计 | L3: 实发工资
A4: 1 | B4: 邓川 | C4: 销售经理 | D4: 2300 | E4: 2200 | F4: 500 | G4: =SUM(D4:F4) -> 5000 | I4: 50 | K4: =SUM(H4:J4) -> 50 | L4: =G4-K4 -> 4950
A5: 2 | B5: 周枫 | C5: 销售经理 | D5: 2100 | E5: 2300 | F5: 500 | G5: =SUM(D5:F5) -> 4900 | K5: =SUM(H5:J5) -> 0 | L5: =G5-K5 -> 4900
A6: 3 | B6: 杨智 | C6: 销售经理 | D6: 2200 | E6: 2300 | F6: 500 | G6: 5000 | I6: 50 | K6: 50 | L6: =G6-K6 -> 4950
A7: 4 | B7: 王益 | C7: 销售经理 | D7: 2100 | E7: 2300 | F7: 500 | G7: 4900 | K7: 0 | L7: =G7-K7 -> 4900
A8: 5 | B8: 陈洋 | C8: 销售经理 | D8: 2300 | E8: 2300 | F8: 500 | G8: 5100 | K8: 0 | L8: =G8-K8 -> 5100
A9: 6 | B9: 夏天 | C9: 销售经理 | D9: 2500 | E9: 2000 | F9: 400 | G9: =SUM(D9:F9) -> 4900 | I9: 150 | K9: 150 | L9: =G9-K9 -> 4750
A10: 7 | B10: 刘秦 | C10: 业务员 | D10: 1500 | E10: 2700 | F10: 500 | G10: 4700 | K10: 0 | L10: =G10-K10 -> 4700
A11: 8 | B11: 王影 | C11: 业务员 | D11: 1500 | E11: 2500 | F11: 500 | G11: 4500 | K11: 0 | L11: =G11-K11 -> 4500
A12: 9 | B12: 陈林 | C12: 业务员 | D12: 1500 | E12: 2500 | F12: 500 | G12: 4500 | J12: 150 | K12: 150 | L12: =G12-K12 -> 4350
A13: 10 | B13: 谢翼 | C13: 业务员 | D13: 1500 | E13: 2400 | F13: 500 | G13: 4400 | K13: 0 | L13: =G13-K13 -> 4400
A14: 11 | B14: 蒋平 | C14: 业务员 | D14: 1500 | E14: 2300 | F14: 500 | G14: 4300 | K14: 0 | L14: =G14-K14 -> 4300
A15: 12 | B15: 金江 | C15: 业务员 | D15: 1500 | E15: 2100 | F15: 400 | G15: 4000 | I15: 100 | K15: 100 | L15: =G15-K15 -> 3900
A16: 13 | B16: 李圆 | C16: 业务员 | D16: 1000 | E16: 700 | F16: 300 | G16: 2000 | H16: 40 | K16: 40 | L16: =G16-K16 -> 1960
A17: 14 | B17: 陈环 | C17: 业务员 | D17: 1700 | E17: 1900 | F17: 300 | G17: 3900 | I17: 100 | K17: 100 | L17: =G17-K17 -> 3800
A18: 15 | B18: 周剑侠 | C18: 业务员 | D18: 1300 | E18: 800 | F18: 300 | G18: 2400 | H18: 20 | I18: 300 | K18: 320 | L18: =G18-K18 -> 2080
A19: 16 | B19: 钟均 | C19: 保洁员 | D19: 500 | E19: 0 | F19: 100 | G19: 600 | H19: 0 | I19: 0 | J19: 0 | K19: 0 | L19: =G19-K19 -> 600
B20: 值
A21: 行标签 | B21: 求和项:小计 | C21: 求和项:小计2 | D21: 求和项:实发工资
A22: 陈环 | B22: 3900 | C22: 100 | D22: 3800
A23: 业务员 | B23: 3900 | C23: 100 | D23: 3800
A24: 陈林 | B24: 4500 | C24: 150 | D24: 4350
A25: 业务员 | B25: 4500 | C25: 150 | D25: 4350
A26: 陈洋 | B26: 5100 | C26: 0 | D26: 5100
A27: 销售经理 | B27: 5100 | C27: 0 | D27: 5100
A28: 邓川 | B28: 5000 | C28: 50 | D28: 4950
A29: 销售经理 | B29: 5000 | C29: 50 | D29: 4950
A30: 蒋平 | B30: 4300 | C30: 0 | D30: 4300
A31: 业务员 | B31: 4300 | C31: 0 | D31: 4300
A32: 金江 | B32: 4000 | C32: 100 | D32: 3900
A33: 业务员 | B33: 4000 | C33: 100 | D33: 3900
A34: 李圆 | B34: 2000 | C34: 40 | D34: 1960
A35: 业务员 | B35: 2000 | C35: 40 | D35: 1960
A36: 刘秦 | B36: 4700 | C36: 0 | D36: 4700
A37: 业务员 | B37: 4700 | C37: 0 | D37: 4700
A38: 王益 | B38: 4900 | C38: 0 | D38: 4900
A39: 销售经理 | B39: 4900 | C39: 0 | D39: 4900
A40: 王影 | B40: 4500 | C40: 0 | D40: 4500
A41: 业务员 | B41: 4500 | C41: 0 | D41: 4500
A42: 夏天 | B42: 4900 | C42: 150 | D42: 4750
A43: 销售经理 | B43: 4900 | C43: 150 | D43: 4750
A44: 谢翼 | B44: 4400 | C44: 0 | D44: 4400
A45: 业务员 | B45: 4400 | C45: 0 | D45: 4400
A46: 杨智 | B46: 5000 | C46: 50 | D46: 4950
A47: 销售经理 | B47: 5000 | C47: 50 | D47: 4950
A48: 钟均 | B48: 600 | C48: 0 | D48: 600
A49: 保洁员 | B49: 600 | C49: 0 | D49: 600
A50: 周枫 | B50: 4900 | C50: 0 | D50: 4900
A51: 销售经理 | B51: 4900 | C51: 0 | D51: 4900
A52: 周剑侠 | B52: 2400 | C52: 320 | D52: 2080
A53: 业务员 | B53: 2400 | C53: 320 | D53: 2080
A54: 总计 | B54: 65100 | C54: 960 | D54: 64140

Sheet Sheet2

Sheet Sheet3
